bitfinex/quotes_BTCUSD_20250904
["timestamp","ask_amount","ask_price","bid_price","bid_amount"]
[1757001867062,0.00028577,109800.0,109790.0,0.50479662]
[1757001867264,0.00028577,109800.0,109790.0,0.50579662]
[1757001867446,0.00028577,109800.0,109790.0,0.50679662]
[1757001867868,0.00028577,109800.0,109790.0,0.88383653]
[1757001868272,0.00028577,109800.0,109790.0,0.50679662]
[1757001868465,0.00028577,109800.0,109790.0,0.88383653]
[1757001868667,0.00028577,109800.0,109790.0,0.34887662]
[1757001868919,0.00028577,109800.0,109790.0,0.52571544]
[1757001869254,0.00028577,109800.0,109790.0,0.52563544]
[1757001869908,0.00028577,109800.0,109790.0,0.52238544]
[1757001870113,0.00028577,109800.0,109790.0,0.52761544]
[1757001870531,0.00028577,109800.0,109790.0,0.36981544]
[1757001870694,0.00028577,109800.0,109790.0,0.52757544]
[1757001873320,0.00028577,109800.0,109790.0,0.52741544]
[1757001875601,0.20230769,109810.0,109800.0,0.18214936]
[1757001875920,0.74575947,109820.0,109800.0,0.43150535]
[1757001876350,0.18213277,109810.0,109800.0,0.27406535]
[1757001876658,0.36871956,109820.0,109800.0,0.27406535]
[1757001876837,0.55917268,109810.0,109800.0,0.27406535]
[1757001877260,0.18213277,109810.0,109800.0,0.27406535]
[1757001877466,0.55917268,109810.0,109800.0,0.27406535]
[1757001877881,0.74575947,109820.0,109800.0,0.27936535]
[1757001879167,0.55553738,109820.0,109810.0,0.18213277]
[1757001879371,0.57993357,109820.0,109810.0,0.18531277]
[1757001879581,0.57993357,109820.0,109810.0,0.18213277]
[1757001880193,0.57893357,109820.0,109810.0,0.18213277]
[1757001880390,0.57993357,109820.0,109810.0,0.18213277]
[1757001880592,0.20289366,109820.0,109810.0,0.18213277]
[1757001880800,0.57993357,109820.0,109810.0,0.18213277]
[1757001883146,0.20289366,109820.0,109810.0,0.18213277]
[1757001883371,0.20289366,109820.0,109800.0,0.27724535]
[1757001883569,0.57993357,109820.0,109800.0,0.27724535]
[1757001884259,0.57993357,109820.0,109810.0,0.18213277]
[1757001884817,0.57993357,109820.0,109810.0,0.18531277]
[1757001885048,0.57993357,109820.0,109810.0,0.18743277]
[1757001885582,0.20289366,109820.0,109810.0,0.18743277]
[1757001885804,0.35901366,109820.0,109810.0,0.18743277]
[1757001886114,0.36001366,109820.0,109810.0,0.18743277]
[1757001886320,0.73705357,109820.0,109810.0,0.18743277]
[1757001886699,0.35901366,109820.0,109810.0,0.18743277]
[1757001886921,0.73705357,109820.0,109810.0,0.18743277]
[1757001887175,0.36001366,109820.0,109810.0,0.18743277]
[1757001887306,0.73705357,109820.0,109810.0,0.18743277]
[1757001888520,0.02077747,109820.0,109810.0,0.18743277]
[1757001888731,0.001,109820.0,109810.0,0.18743277]
[1757001889140,0.18311619,109820.0,109810.0,0.34551277]
[1757001889421,0.5601561,109820.0,109810.0,0.34339277]
[1757001889643,0.5601561,109820.0,109810.0,0.18213277]
[1757001889860,0.18311619,109820.0,109810.0,0.18213277]
[1757001890067,0.5601561,109820.0,109810.0,0.18531277]
[1757001890446,0.18311619,109820.0,109810.0,0.18743277]
[1757001890612,0.001,109820.0,109810.0,0.18743277]
[1757001890814,0.37803991,109820.0,109810.0,0.18743277]
[1757001891054,0.01814236,109820.0,109810.0,0.18743277]
[1757001891257,0.39518227,109820.0,109810.0,0.18743277]
[1757001891866,0.57729846,109820.0,109810.0,0.18531277]
[1757001892077,0.20025855,109820.0,109810.0,0.18743277]
[1757001892261,0.20025855,109820.0,109810.0,0.18531277]
[1757001892434,0.57729846,109820.0,109810.0,0.18531277]
[1757001892626,0.39518227,109820.0,109810.0,0.18531277]
[1757001892834,0.39518227,109820.0,109810.0,0.27934876]
[1757001892835,0.15968,109820.0,109810.0,0.27934876]
[1757001893019,0.001,109820.0,109810.0,0.27934876]
[1757001894266,0.01832972,109820.0,109810.0,0.27934876]
[1757001894472,0.001,109820.0,109810.0,0.27934876]
[1757001895477,0.01871014,109820.0,109810.0,0.27934876]
[1757001895777,0.001,109820.0,109810.0,0.27934876]
[1757001896764,0.001,109820.0,109810.0,0.30028758]
[1757001896967,0.001,109820.0,109810.0,0.71312749]
[1757001897236,0.001,109820.0,109810.0,0.74049477]
[1757001897427,0.001,109820.0,109810.0,0.36345486]
[1757001897632,0.001,109820.0,109810.0,0.89901477]
[1757001898495,0.001,109820.0,109810.0,0.74049477]
[1757001898700,0.0002,109830.0,109820.0,0.20305501]
[1757001898898,0.0002,109830.0,109820.0,0.294971]
[1757001899097,0.0002,109830.0,109820.0,0.458711]
[1757001899669,0.0002,109830.0,109820.0,0.459711]
[1757001899912,0.0002,109830.0,109820.0,0.50156502]
[1757001900476,0.0002,109830.0,109820.0,0.34312502]
[1757001900647,0.0002,109830.0,109820.0,0.50152502]
[1757001901041,0.0002,109830.0,109820.0,0.34312502]
[1757001901253,0.0002,109830.0,109820.0,0.50160502]
[1757001901449,0.0002,109830.0,109820.0,0.34312502]
[1757001901653,0.0002,109830.0,109820.0,0.50156502]
[1757001902075,0.0002,109830.0,109820.0,0.50256502]
[1757001903391,0.0002,109830.0,109820.0,0.87960493]
[1757001903616,0.0002,109830.0,109820.0,0.50256502]
[1757001904008,0.0002,109830.0,109820.0,0.87960493]
[1757001904134,0.0002,109830.0,109820.0,0.34412502]
[1757001904343,0.0002,109830.0,109820.0,0.50248502]
[1757001904559,0.0002,109830.0,109820.0,0.34412502]
[1757001904819,0.0002,109830.0,109820.0,0.50244502]
[1757001905247,0.0002,109830.0,109820.0,0.34412502]
[1757001905485,0.37723991,109830.0,109820.0,0.33882502]
[1757001905652,0.55933951,109830.0,109820.0,0.22597021]
[1757001905959,0.55933951,109830.0,109820.0,0.38433021]
[1757001906368,0.37723991,109830.0,109820.0,0.38954021]
[1757001907066,0.55933951,109830.0,109820.0,0.38954021]
[1757001907273,0.0002,109830.0,109820.0,0.38954021]
[1757001907480,0.37723991,109830.0,109820.0,0.38954021]
[1757001908671,0.55933951,109830.0,109820.0,0.38756021]
[1757001908877,0.0002,109830.0,109820.0,0.38938021]
[1757001909083,0.0002,109830.0,109820.0,0.4812962]
[1757001909485,0.37723991,109830.0,109820.0,0.4812962]
[1757001911106,0.55933951,109830.0,109820.0,0.4793162]
[1757001911308,0.1822996,109830.0,109820.0,0.4801962]
[1757001911510,0.37723991,109830.0,109820.0,0.4801962]
[1757001911662,0.0002,109830.0,109820.0,0.4821762]
[1757001912826,0.0002,109830.0,109820.0,0.50311502]
[1757001913027,0.0002,109830.0,109820.0,0.88015493]
[1757001913232,0.0002,109830.0,109820.0,0.50311502]
[1757001913605,0.0002,109830.0,109820.0,1.25772493]
[1757001914273,0.0002,109830.0,109820.0,0.88068502]
[1757001914427,0.0002,109830.0,109820.0,0.9080505]
[1757001914766,0.0002,109830.0,109820.0,0.8716005]
[1757001915198,0.0002,109830.0,109820.0,1.24864041]
[1757001916394,0.0002,109830.0,109820.0,0.8716005]
[1757001916598,0.0002,109830.0,109820.0,1.28621041]
[1757001917429,0.0002,109830.0,109820.0,0.9091705]
[1757001917854,0.0002,109830.0,109820.0,1.66213762]
[1757001919437,0.0002,109830.0,109820.0,1.71213762]
[1757001919852,0.0002,109830.0,109820.0,2.11213762]
[1757001920530,1e-08,109830.0,109820.0,2.16213762]
[1757001920816,1e-08,109830.0,109820.0,2.53862118]
[1757001921018,1e-08,109830.0,109820.0,2.16213762]
[1757001921260,1e-08,109830.0,109820.0,2.16113762]
[1757001921460,1e-08,109830.0,109820.0,2.16181762]
[1757001921839,1e-08,109830.0,109820.0,2.00393762]
[1757001921993,1e-08,109830.0,109820.0,2.16381762]
[1757001922204,1e-08,109830.0,109820.0,2.16385762]
[1757001922821,1e-08,109830.0,109820.0,1.4108905]
[1757001923029,1e-08,109830.0,109820.0,2.16385762]
[1757001923228,1e-08,109830.0,109820.0,1.2509705]
[1757001923425,1e-08,109830.0,109820.0,1.4108505]
[1757001923634,1e-08,109830.0,109820.0,2.16381762]
[1757001924271,1e-08,109830.0,109820.0,1.4108505]
[1757001924488,1e-08,109830.0,109820.0,1.95393762]
[1757001924705,1e-08,109830.0,109820.0,2.16437762]
[1757001924932,1e-08,109830.0,109820.0,1.3614105]
[1757001925144,1e-08,109830.0,109820.0,2.11437762]
[1757001925368,1e-08,109830.0,109820.0,2.16437762]
[1757001925512,1e-08,109830.0,109820.0,1.90393762]
[1757001925824,1e-08,109830.0,109820.0,1.50393762]
[1757001926027,1e-08,109830.0,109820.0,1.22942524]
[1757001926437,1e-08,109830.0,109820.0,1.25036406]
[1757001927017,1e-08,109830.0,109820.0,1.08988406]
[1757001927227,1e-08,109830.0,109820.0,0.7134005]
[1757001927461,1e-08,109830.0,109820.0,0.91036406]
[1757001928487,1e-08,109830.0,109820.0,0.50651502]
[1757001928687,1e-08,109830.0,109820.0,0.88299858]
[1757001929615,1e-08,109830.0,109820.0,0.50651502]
[1757001930110,1e-08,109830.0,109820.0,0.88299858]
[1757001930957,1e-08,109830.0,109820.0,1.25948214]
[1757001931129,1e-08,109830.0,109820.0,0.88299858]
[1757001931516,1e-08,109830.0,109820.0,0.88267858]
[1757001931711,1e-08,109830.0,109820.0,0.74988489]
[1757001931891,1e-08,109830.0,109820.0,0.91004489]
[1757001932489,1e-08,109830.0,109820.0,1.32409845]
[1757001932891,0.64138321,109860.0,109820.0,1.32409845]
[1757001932892,0.64138321,109860.0,109840.0,0.18208302]
[1757001933019,0.64138321,109860.0,109850.0,0.34214645]
[1757001933227,1.01800789,109860.0,109850.0,0.18206645]
[1757001933477,1.01800789,109860.0,109840.0,0.18208302]
[1757001933645,1.01800789,109860.0,109840.0,0.34531302]
[1757001933646,0.37648356,109850.0,109840.0,0.34531302]
[1757001934262,0.55855001,109850.0,109840.0,0.34531302]
[1757001934669,0.55855001,109850.0,109840.0,0.18208302]
[1757001934879,0.55855001,109850.0,109840.0,0.34200302]
[1757001935094,0.55855001,109850.0,109830.0,0.19118962]
[1757001935301,0.55855001,109850.0,109820.0,0.07445033]
[1757001935302,0.93505014,109840.0,109820.0,0.07445033]
[1757001935521,0.55858316,109830.0,109820.0,0.4759662]
[1757001935723,0.37648356,109830.0,109820.0,0.4759662]
[1757001935928,0.18208302,109840.0,109820.0,0.4759662]
[1757001936223,0.18208302,109840.0,109820.0,0.4790662]
[1757001936424,0.55856658,109840.0,109830.0,0.1820996]
[1757001936626,0.1820996,109830.0,109820.0,0.4800662]
[1757001936831,0.1820996,109830.0,109820.0,0.4769662]
[1757001937315,0.1820996,109830.0,109820.0,0.3199862]
[1757001937529,0.55858316,109830.0,109820.0,0.13477001]
[1757001937766,0.55858316,109830.0,109820.0,0.27503218]
[1757001937972,0.55858316,109830.0,109820.0,0.001]
[1757001938377,0.55858316,109830.0,109820.0,0.18211619]
[1757001938724,0.55858316,109830.0,109810.0,0.3542594]
[1757001938933,0.37648356,109820.0,109810.0,0.46711421]
[1757001939161,0.37648356,109820.0,109810.0,0.46919421]
[1757001940104,0.37648356,109820.0,109810.0,0.47219421]
[1757001940956,0.37648356,109820.0,109810.0,0.47519421]
[1757001941572,0.37648356,109820.0,109810.0,0.50256516]
[1757001941813,0.18211619,109820.0,109810.0,0.31652634]
[1757001941969,0.55859975,109820.0,109810.0,0.47926634]
[1757001942432,0.55859975,109820.0,109810.0,0.47015971]
[1757001942603,0.1820996,109830.0,109810.0,0.44186876]
[1757001942931,0.1820996,109830.0,109820.0,0.18211619]
[1757001943277,0.1820996,109830.0,109810.0,0.44078876]
[1757001943718,0.1820996,109830.0,109810.0,0.43678876]
[1757001944246,0.37648356,109820.0,109810.0,0.43678876]
[1757001944450,0.37648356,109820.0,109810.0,0.43886876]
[1757001944826,0.55859975,109820.0,109810.0,0.43886876]
[1757001945201,0.55859975,109820.0,109810.0,0.43986876]
[1757001945573,0.93508331,109820.0,109810.0,0.43384876]
[1757001945793,0.93508331,109820.0,109810.0,0.27404876]
[1757001945949,1.1102807,109820.0,109810.0,0.18513277]
[1757001946605,1.1102807,109820.0,109810.0,0.18723277]
[1757001947022,1.1102807,109820.0,109810.0,0.18923277]
[1757001947330,1.1102807,109820.0,109810.0,0.19131277]
[1757001947479,0.35731358,109820.0,109810.0,0.19131277]
[1757001947670,1.1102807,109820.0,109810.0,0.19131277]
[1757001948433,0.35731358,109820.0,109810.0,0.19131277]
[1757001948660,1.1102807,109820.0,109810.0,0.19131277]
[1757001948984,1.1102807,109820.0,109810.0,0.18923277]
[1757001949196,1.1102807,109820.0,109810.0,0.18723277]
[1757001949400,1.1102807,109820.0,109810.0,0.18731277]
[1757001949600,1.1102807,109820.0,109810.0,0.18313277]
[1757001949815,1.1102807,109820.0,109810.0,0.18413277]
[1757001950238,1.1102807,109820.0,109810.0,0.18723277]
[1757001950995,1.1102807,109820.0,109810.0,0.18931277]
[1757001951405,1.1102807,109820.0,109810.0,0.002]
[1757001951406,1.48676426,109820.0,109810.0,0.002]
[1757001951606,1.1102807,109820.0,109810.0,0.002]
[1757001952531,1.13765665,109820.0,109810.0,0.002]
[1757001952768,1.51414021,109820.0,109810.0,0.002]
[1757001953547,1.13765665,109820.0,109810.0,0.002]
[1757001953731,0.97793665,109820.0,109810.0,0.002]
[1757001953927,1.13761665,109820.0,109810.0,0.002]
[1757001954525,1.13749665,109820.0,109810.0,0.002]
[1757001954725,0.22496953,109820.0,109810.0,0.002]
[1757001955169,0.73363714,109820.0,109810.0,0.19158942]
[1757001955366,0.73363714,109820.0,109810.0,0.18931277]
[1757001956302,0.73363714,109820.0,109810.0,0.00718]
[1757001956463,0.73363714,109820.0,109810.0,0.00945665]
[1757001956820,1.1101207,109820.0,109810.0,0.00945665]
[1757001957066,1.1101207,109820.0,109810.0,0.00718]
[1757001957990,0.35715358,109820.0,109810.0,0.0051]
[1757001958136,0.73363714,109820.0,109810.0,0.00718]
[1757001958491,0.73363714,109820.0,109810.0,0.00945665]
[1757001960385,1.1101207,109820.0,109810.0,0.002]
[1757001960619,1.1101207,109820.0,109810.0,0.00718]
[1757001961463,1.1098007,109820.0,109810.0,0.00718]
[1757001962198,1.1097207,109820.0,109810.0,0.18931277]
[1757001962404,1.1097207,109820.0,109810.0,0.00718]
[1757001962779,1.1096807,109820.0,109810.0,0.00718]
[1757001963610,1.1096807,109820.0,109810.0,0.18931277]
[1757001964167,1.1096807,109820.0,109810.0,0.002]
[1757001971525,1.1096807,109820.0,109810.0,0.00496]
[1757001972180,1.1096807,109820.0,109810.0,0.002]
[1757001972745,1.1370563,109820.0,109810.0,0.002]
[1757001974033,1.51353986,109820.0,109810.0,0.002]
[1757001974637,1.1370563,109820.0,109810.0,0.002]
[1757001977667,0.76099456,109820.0,109810.0,0.002]
[1757001978747,0.60187456,109820.0,109810.0,0.002]
[1757001978970,0.76015456,109820.0,109810.0,0.00707]
[1757001979463,0.76015456,109820.0,109810.0,0.00496]
[1757001980386,0.76007456,109820.0,109810.0,0.00496]
[1757001981568,0.76007456,109820.0,109810.0,0.002]
[1757001982219,0.76007456,109820.0,109810.0,0.00496]
[1757001982780,0.76007456,109820.0,109810.0,0.002]
[1757001983400,0.76007456,109820.0,109810.0,0.00496]
[1757001984637,0.60187456,109820.0,109810.0,0.00496]
[1757001984838,0.60187456,109820.0,109810.0,0.00707]
[1757001985041,0.22496918,109820.0,109810.0,0.00707]
[1757001985249,0.75983456,109820.0,109810.0,0.00707]
[1757001986164,0.60187456,109820.0,109810.0,0.00707]
[1757001986371,0.75979456,109820.0,109810.0,0.00707]
[1757001986773,0.60187456,109820.0,109810.0,0.18920277]
[1757001986960,0.75975456,109820.0,109810.0,0.18920277]
[1757001987718,0.73237896,109820.0,109810.0,0.18920277]
[1757001989707,0.73242597,109820.0,109810.0,0.18920277]
[1757001991012,0.57454597,109820.0,109810.0,0.18920277]
[1757001991162,0.73230597,109820.0,109810.0,0.18920277]
[1757001992973,0.35540059,109820.0,109810.0,0.18920277]
[1757001993176,0.73230597,109820.0,109810.0,0.18920277]
[1757001993771,0.35540059,109820.0,109810.0,0.18920277]
[1757001993901,0.73230597,109820.0,109810.0,0.18920277]
[1757001994099,0.57454597,109820.0,109810.0,0.18920277]
[1757001994291,0.73214597,109820.0,109810.0,0.18920277]
[1757001999960,0.35524059,109820.0,109810.0,0.18920277]
[1757002000197,0.73214597,109820.0,109810.0,0.18920277]
[1757002001178,0.39242978,109820.0,109810.0,0.18920277]
[1757002001341,0.73186597,109820.0,109810.0,0.18920277]
[1757002001558,0.75924077,109820.0,109810.0,0.18920277]
[1757002006300,0.75924077,109820.0,109810.0,0.002]
[1757002007809,1.54326615,109820.0,109810.0,0.002]
[1757002008055,1.63518214,109820.0,109810.0,0.002]
[1757002008494,1.65487861,109820.0,109810.0,0.002]
[1757002008701,1.7467946,109820.0,109810.0,0.002]
[1757002008890,1.66342665,109820.0,109810.0,0.002]
[1757002009259,1.65487861,109820.0,109810.0,0.002]
[1757002009468,1.65487861,109820.0,109810.0,0.001]
[1757002009665,0.18216595,109790.0,109780.0,0.00317]
[1757002009913,0.18218254,109780.0,109770.0,0.31627103]
[1757002010237,0.15704,109780.0,109770.0,0.41031702]
[1757002010432,0.33922254,109780.0,109770.0,0.30672194]
[1757002010651,0.71612792,109780.0,109770.0,0.27934167]
[1757002011232,0.7161749,109780.0,109770.0,0.27934167]
[1757002011407,0.7161749,109780.0,109770.0,0.28334167]
[1757002012508,0.5591349,109780.0,109770.0,0.28334167]
[1757002012910,0.53391236,109780.0,109770.0,0.28334167]
[1757002013136,0.15696698,109780.0,109770.0,0.28334167]
[1757002013919,4.698e-05,109780.0,109770.0,0.28334167]
[1757002014144,0.15696698,109780.0,109770.0,0.28334167]
[1757002017399,0.17110738,109780.0,109770.0,0.28334167]
[1757002017594,0.15696698,109780.0,109770.0,0.28334167]
[1757002017820,0.5591349,109780.0,109770.0,0.004]
[1757002018066,0.7159349,109780.0,109770.0,0.004]
[1757002018266,0.74332239,109780.0,109770.0,0.004]
[1757002018461,0.3808285,109780.0,109770.0,0.004]
[1757002018675,0.75773388,109780.0,109770.0,0.004]
[1757002018873,0.75773388,109780.0,109770.0,0.002]
[1757002019237,0.18223234,109750.0,109740.0,0.12457704]
[1757002019436,0.71577613,109760.0,109740.0,0.49499244]
[1757002019637,0.71573613,109760.0,109740.0,0.49499244]
[1757002019865,0.18223234,109750.0,109740.0,0.29723376]
[1757002020062,0.36621947,109760.0,109740.0,0.29723376]
[1757002020242,0.20961947,109760.0,109740.0,0.29723376]
[1757002020440,0.74308485,109760.0,109750.0,0.00317]
[1757002020887,0.74308485,109760.0,109750.0,0.18753234]
[1757002021269,0.74308485,109760.0,109750.0,0.0053]
[1757002022558,0.74308485,109760.0,109750.0,0.0063]
[1757002023580,0.74308485,109760.0,109750.0,0.0073]
[1757002024201,0.74308485,109760.0,109750.0,0.18953234]
[1757002024202,0.58652485,109760.0,109750.0,0.18953234]
[1757002024470,0.74300485,109760.0,109750.0,0.18953234]
[1757002025278,0.74300485,109760.0,109750.0,0.0073]
[1757002025481,0.58652485,109760.0,109750.0,0.0073]
[1757002025718,0.74300485,109760.0,109750.0,0.0073]
[1757002026376,0.20961947,109760.0,109750.0,0.18953234]
[1757002026575,0.74300485,109760.0,109750.0,0.0073]
[1757002027323,0.74300485,109760.0,109750.0,0.18953234]
[1757002027521,0.74300485,109760.0,109750.0,0.0073]
[1757002028178,0.58652485,109760.0,109750.0,0.18953234]
[1757002028437,0.74300485,109760.0,109750.0,0.18953234]
[1757002028939,0.74300485,109760.0,109750.0,0.0073]
[1757002029745,0.74300485,109760.0,109750.0,0.18423234]
[1757002029948,0.74300485,109760.0,109750.0,0.00523]
[1757002030906,0.74300485,109760.0,109750.0,0.002]
[1757002034339,0.20961947,109760.0,109750.0,0.002]
[1757002034472,0.74300485,109760.0,109750.0,0.002]
[1757002034876,0.58652485,109760.0,109750.0,0.002]
[1757002035080,0.74300485,109760.0,109750.0,0.00523]
[1757002037503,0.36609947,109760.0,109750.0,0.00523]
[1757002037715,0.74300485,109760.0,109750.0,0.00523]
[1757002039644,1.12064053,109760.0,109750.0,0.00523]
[1757002040117,0.96416053,109760.0,109750.0,0.00523]
[1757002040341,0.02738872,109760.0,109750.0,0.65862886]
[1757002040551,1.07039154,109780.0,109760.0,0.20313798]
[1757002040755,1.09777599,109780.0,109770.0,0.18417914]
[1757002040974,1.09777599,109780.0,109770.0,0.18740914]
[1757002041384,1.09777599,109780.0,109770.0,0.00521]
[1757002041385,0.72050546,109780.0,109770.0,0.00521]
[1757002041608,0.73039154,109780.0,109770.0,0.18740914]
[1757002041806,0.549209,109780.0,109770.0,0.18740914]
[1757002041980,0.391729,109780.0,109770.0,0.18740914]
[1757002042182,0.01545847,109780.0,109770.0,0.27932513]
[1757002042402,0.00204698,109780.0,109770.0,0.67753448]
[1757002042601,0.00104698,109780.0,109770.0,0.71389448]
[1757002042802,0.00104698,109780.0,109770.0,0.9397686]
[1757002043094,0.00204698,109780.0,109770.0,0.9397686]
[1757002043302,0.00204698,109780.0,109770.0,0.7832886]
[1757002043506,0.00204698,109780.0,109770.0,0.9397686]
[1757002043902,0.00204698,109780.0,109770.0,0.56249807]
[1757002044304,0.71698005,109780.0,109770.0,0.1454463]
[1757002044515,1.09325058,109780.0,109770.0,0.30670662]
[1757002044911,0.71598005,109780.0,109770.0,0.31170662]
[1757002045143,1.09325058,109780.0,109770.0,0.12650748]
[1757002045352,1.09325058,109780.0,109770.0,0.03259149]
[1757002045556,1.09325058,109780.0,109770.0,0.03461149]
[1757002045758,1.09325058,109780.0,109770.0,0.007]
[1757002046181,1.09325058,109780.0,109770.0,0.004]
[1757002046375,0.18219914,109770.0,109760.0,0.03061442]
[1757002046589,0.55946967,109770.0,109760.0,0.09514599]
[1757002046765,0.18222952,109780.0,109770.0,0.18219914]
[1757002046982,0.71598005,109780.0,109770.0,0.18740914]
[1757002047141,0.71598005,109780.0,109770.0,0.18940914]
[1757002048119,0.71598005,109780.0,109770.0,0.00821]
[1757002048323,0.71598005,109780.0,109770.0,0.19040914]
[1757002048536,0.33870952,109780.0,109770.0,0.00621]
[1757002048742,0.33870952,109780.0,109770.0,0.18840914]
[1757002048982,0.71598005,109780.0,109770.0,0.18840914]
[1757002049246,1.09325058,109780.0,109770.0,0.00721]
[1757002049672,1.09325058,109780.0,109770.0,0.00523]
[1757002049875,1.09325058,109780.0,109770.0,0.002]
[1757002053984,1.12063625,109780.0,109770.0,0.002]
[1757002054216,0.36609519,109780.0,109770.0,0.00721]
[1757002054426,0.58688572,109780.0,109770.0,0.00721]
[1757002054637,0.74340572,109780.0,109770.0,0.00721]
[1757002054842,1.12067625,109780.0,109770.0,0.00721]
[1757002056087,1.12071625,109780.0,109770.0,0.18940914]
[1757002056239,0.74344572,109780.0,109770.0,0.00721]
[1757002056442,1.12071625,109780.0,109770.0,0.00721]
[1757002058991,0.36617519,109780.0,109770.0,0.00721]
[1757002059194,0.74344572,109780.0,109770.0,0.00523]
[1757002059447,0.36617519,109780.0,109770.0,0.00726]
[1757002059629,1.12071625,109780.0,109770.0,0.00726]
[1757002059830,1.12071625,109780.0,109770.0,0.18945914]
[1757002060528,1.12071625,109780.0,109770.0,0.00726]
[1757002061035,0.36617519,109780.0,109770.0,0.00726]
[1757002061232,0.74344572,109780.0,109770.0,0.00726]
[1757002061579,0.71606005,109780.0,109770.0,0.00726]
[1757002062338,0.33878952,109780.0,109770.0,0.00726]
[1757002062540,0.71606005,109780.0,109770.0,0.18945914]
[1757002062799,0.71606005,109780.0,109770.0,0.00726]
[1757002063000,0.71606005,109780.0,109770.0,0.18945914]
[1757002063585,0.33870952,109780.0,109770.0,0.18945914]
[1757002063812,0.71598005,109780.0,109770.0,0.18945914]
[1757002064414,0.55950005,109780.0,109770.0,0.18945914]
[1757002064574,0.71598005,109780.0,109770.0,0.18945914]
[1757002065393,4.698e-05,109780.0,109770.0,0.83606448]
[1757002066582,4.698e-05,109780.0,109770.0,0.45879395]
[1757002066858,4.698e-05,109780.0,109770.0,0.83606448]
[1757002068086,4.698e-05,109780.0,109770.0,0.45879395]
[1757002068693,4.698e-05,109780.0,109770.0,0.30231395]
[1757002068851,0.93677058,109780.0,109770.0,0.09917599]
[1757002069057,0.93677058,109780.0,109770.0,0.00726]
[1757002069252,0.93677058,109780.0,109770.0,0.002]
[1757002071270,0.18222952,109780.0,109770.0,0.002]
[1757002071473,0.93677058,109780.0,109770.0,0.002]
[1757002073748,0.18222952,109780.0,109770.0,0.002]
[1757002073923,0.93677058,109780.0,109770.0,0.00519]
[1757002074315,0.18222952,109780.0,109770.0,0.00722]
[1757002074488,0.93677058,109780.0,109770.0,0.18941914]
[1757002076681,0.93677058,109780.0,109770.0,0.00722]
[1757002079591,0.18222952,109780.0,109770.0,0.00519]
[1757002079793,0.93677058,109780.0,109770.0,0.00519]
[1757002080194,0.93677058,109780.0,109770.0,0.002]
[1757002081394,1.31404111,109780.0,109770.0,0.002]
[1757002081947,1.65404111,109780.0,109770.0,0.002]
[1757002082156,1.8130771,109780.0,109770.0,0.002]
[1757002082356,1.8601476,109780.0,109770.0,0.002]
[1757002083046,2.0165876,109780.0,109770.0,0.001]
[1757002083405,0.18221574,109760.0,109750.0,0.00319]
[1757002083574,1.0931968,109760.0,109750.0,0.00319]
[1757002083776,1.0931968,109760.0,109740.0,0.00319]
[1757002083777,0.18223234,109750.0,109740.0,0.00319]
[1757002084015,0.55950287,109750.0,109740.0,0.00319]
[1757002084327,0.55950287,109750.0,109740.0,0.00522]
[1757002084758,0.9367734,109750.0,109740.0,0.00319]
[1757002084963,0.55950287,109750.0,109740.0,0.00319]
[1757002085145,0.55950287,109750.0,109740.0,0.00719]
[1757002085343,0.37664049,109750.0,109740.0,0.01019]
[1757002085489,0.55887283,109750.0,109740.0,0.01019]
[1757002085931,0.55950287,109750.0,109740.0,0.01019]
[1757002086587,0.55950287,109750.0,109740.0,0.00319]
[1757002086864,0.55950287,109750.0,109740.0,0.00528]
[1757002087081,0.71594287,109750.0,109740.0,0.00728]
[1757002088134,0.33867234,109750.0,109740.0,0.18952895]
[1757002088357,0.18223234,109750.0,109740.0,0.19252895]
[1757002088559,0.71594287,109750.0,109740.0,0.19252895]
[1757002089035,0.71594287,109750.0,109740.0,0.01028]
[1757002089591,0.71594287,109750.0,109740.0,0.19252895]
[1757002089974,0.71594287,109750.0,109740.0,0.01028]
[1757002093722,0.71594287,109750.0,109740.0,0.19252895]
[1757002096094,0.55950287,109750.0,109740.0,0.19252895]
[1757002096314,0.71594287,109750.0,109740.0,0.19252895]
[1757002096500,0.53110981,109750.0,109740.0,0.19252895]
[1757002096707,0.71334215,109750.0,109740.0,0.19252895]
[1757002099459,0.71597243,109750.0,109740.0,0.01028]
[1757002099659,0.71597243,109750.0,109740.0,0.19252895]
[1757002100323,0.18223234,109750.0,109740.0,0.19252895]
[1757002100576,0.55953243,109750.0,109740.0,0.19252895]
[1757002100780,0.71593243,109750.0,109740.0,0.19252895]
[1757002101014,0.55953243,109750.0,109740.0,0.19252895]
[1757002101303,0.71593243,109750.0,109740.0,0.19252895]
[1757002101507,0.67861574,109760.0,109750.0,0.18223234]
[1757002101659,1.05591583,109760.0,109750.0,0.00503]
[1757002101861,0.67861574,109760.0,109750.0,0.00503]
[1757002102248,1.05591583,109760.0,109750.0,0.00294]
[1757002102639,1.05591583,109760.0,109750.0,0.001]
[1757002102854,1.05591583,109760.0,109750.0,0.002]
[1757002103781,1.05591583,109760.0,109750.0,0.00494]
[1757002104287,1.05591583,109760.0,109750.0,0.002]
[1757002104533,0.67861574,109760.0,109750.0,0.002]
[1757002104699,1.05591583,109760.0,109750.0,0.00494]
[1757002105031,0.89951583,109760.0,109750.0,0.00494]
[1757002105240,0.89951583,109760.0,109750.0,0.18926234]
[1757002105399,1.05591583,109760.0,109750.0,0.18926234]
[1757002108138,0.55951583,109760.0,109750.0,0.18926234]
[1757002108334,0.34,109770.0,109760.0,0.18221574]
[1757002108668,4.698e-05,109780.0,109770.0,0.18219914]
[1757002108867,0.15640698,109780.0,109770.0,0.27914513]
[1757002109079,4.698e-05,109780.0,109770.0,0.27914513]
[1757002109275,4.698e-05,109780.0,109770.0,0.30008395]
[1757002110165,4.698e-05,109780.0,109770.0,0.71230404]
[1757002110550,0.00104698,109780.0,109770.0,0.71230404]
[1757002111168,0.00104698,109780.0,109770.0,0.75240813]
[1757002111789,0.00204698,109780.0,109770.0,0.75240813]
[1757002111935,0.00104698,109780.0,109770.0,0.7656732]
[1757002112162,4.698e-05,109780.0,109770.0,0.75240813]
[1757002112365,0.00104698,109780.0,109770.0,0.75240813]
[1757002112565,0.00104698,109780.0,109770.0,0.75640813]
[1757002112768,4.698e-05,109780.0,109770.0,0.75640813]
[1757002113171,4.698e-05,109780.0,109770.0,0.75940813]
[1757002113828,4.698e-05,109780.0,109770.0,0.91576813]
[1757002114336,4.698e-05,109780.0,109770.0,0.91572813]
[1757002114541,4.698e-05,109780.0,109770.0,0.75940813]
[1757002114719,4.698e-05,109780.0,109770.0,0.91572813]
[1757002115291,4.698e-05,109780.0,109770.0,0.75940813]
[1757002115479,4.698e-05,109780.0,109770.0,0.53842804]
[1757002116929,4.698e-05,109780.0,109770.0,0.34718804]
[1757002117168,4.698e-05,109780.0,109770.0,0.50350804]